bitfinex/quotes_ETHUSD_20230110
["timestamp","ask_amount","ask_price","bid_price","bid_amount"]
[1673328720188,3.05711076,1325.3,1325.1,24.0788187]
[1673328721014,3.05711076,1325.3,1325.1,8.9856187]
[1673328721227,3.05711076,1325.3,1325.1,1.4391387]
[1673328721417,3.05711076,1325.3,1325.1,1.3731387]
[1673328722662,5.55711076,1325.3,1325.1,1.3731387]
[1673328722879,19.78858394,1325.3,1325.0,1.433]
[1673328723117,17.28858394,1325.3,1325.0,1.367]
[1673328723344,3.12311076,1325.3,1325.0,8.9141]
[1673328723665,0.05711076,1325.3,1325.0,8.9801]
[1673328723983,2.55711076,1325.3,1325.0,8.9801]
[1673328725138,2.55711076,1325.3,1325.0,1.433]
[1673328725368,2.55711076,1325.3,1325.0,1.367]
[1673328725533,0.05711076,1325.3,1325.0,3.774578]
[1673328726681,0.05711076,1325.3,1325.0,3.78071716]
[1673328727833,0.05711076,1325.3,1325.1,1.367]
[1673328728044,0.05711076,1325.3,1325.2,15.09206]
[1673328728327,0.05711076,1325.3,1325.2,16.53119823]
[1673328728532,0.05711076,1325.3,1325.2,18.93893505]
[1673328729563,0.85259702,1325.3,1325.2,18.93893505]
[1673328732152,0.85259702,1325.3,1325.2,11.39290505]
[1673328732384,0.85259702,1325.3,1325.2,11.39061573]
[1673328732566,0.85259702,1325.3,1325.2,0.07213823]
[1673328732776,0.85259702,1325.3,1325.0,8.8985]
[1673328733106,8.39805702,1325.3,1325.0,8.8985]
[1673328733327,8.46405702,1325.3,1325.0,8.8985]
[1673328735323,0.91859702,1325.3,1325.0,8.8985]
[1673328735643,0.85259702,1325.3,1325.0,19.789087]
[1673328736159,8.39806702,1325.3,1325.0,12.241927]
[1673328736378,9.59032428,1325.3,1325.0,10.874927]
[1673328738012,2.04485428,1325.3,1325.0,18.421967]
[1673328738263,1.97885428,1325.3,1325.0,10.874927]
[1673328739284,9.52433428,1325.3,1325.0,10.874927]
[1673328739489,9.52433428,1325.3,1325.0,0.066]
[1673328739490,15.07806804,1325.3,1325.0,0.066]
[1673328739718,15.07803804,1325.3,1324.9,18.42137]
[1673328740123,20.93803804,1325.3,1324.9,18.42137]
[1673328740333,28.48375804,1325.3,1324.9,9.5069]
[1673328740558,25.98375804,1325.3,1324.9,9.5069]
[1673328740766,13.38810492,1325.3,1324.9,27.871774]
[1673328740984,13.38810492,1325.3,1324.9,20.324044]
[1673328741594,13.38810492,1325.3,1324.9,27.871774]
[1673328741817,20.93369492,1325.3,1324.9,20.324044]
[1673328743068,22.62349804,1325.3,1324.9,20.324044]
[1673328743284,26.97553834,1325.3,1324.9,20.324044]
[1673328743628,26.97553834,1325.3,1324.9,12.776424]
[1673328743786,26.97553834,1325.3,1324.9,9.5069]
[1673328743787,1.12625726,1325.2,1324.9,9.5069]
[1673328744003,7.5466,1325.1,1324.9,10.0732]
[1673328744208,0.066,1325.1,1324.9,0.066]
[1673328744454,23.76610726,1325.1,1324.8,8.7249]
[1673328744692,26.33210726,1325.1,1324.8,8.1586]
[1673328745303,23.83210726,1325.1,1324.8,8.1586]
[1673328745517,14.79593247,1325.1,1324.8,8.1586]
[1673328746251,12.29593247,1325.1,1324.8,8.1586]
[1673328746627,12.29593247,1325.1,1324.8,15.70681]
[1673328746628,4.74933247,1325.1,1324.8,15.70681]
[1673328746839,1.12625726,1325.1,1324.8,8.1586]
[1673328747049,3.62625726,1325.1,1324.8,8.1586]
[1673328747310,11.17317726,1325.1,1324.8,8.1586]
[1673328747613,18.78609726,1325.1,1324.8,8.1586]
[1673328747828,20.47590038,1325.1,1324.8,8.1586]
[1673328748221,24.25832414,1325.1,1324.8,8.1586]
[1673328749598,1.12625726,1325.0,1324.8,8.1586]
[1673328750410,1.17625726,1325.0,1324.8,0.066]
[1673328750621,1.12625726,1325.0,1324.7,3.94129516]
[1673328750859,1.12625726,1325.0,1324.7,5.3933679]
[1673328751071,1.12625726,1325.0,1324.7,8.26880986]
[1673328751927,1.12625726,1325.0,1324.8,1.87298635]
[1673328754324,1.12625726,1325.0,1324.8,1.87075951]
[1673328758333,2.81606038,1325.0,1324.7,29.78903721]
[1673328758548,2.81606038,1325.0,1324.7,30.91474986]
[1673328758757,1.12625726,1325.0,1324.7,30.91474986]
[1673328758968,2.81606038,1325.0,1324.7,29.78903721]
[1673328759931,1.12625726,1325.0,1324.7,29.78903721]
[1673328760456,2.81606038,1325.0,1324.7,29.78903721]
[1673328761464,1.12625726,1325.0,1324.7,29.78903721]
[1673328762311,2.81606038,1325.0,1324.7,22.24023721]
[1673328763667,1.12625726,1325.0,1324.7,14.69162721]
[1673328764355,2.81606038,1325.0,1324.7,14.69162721]
[1673328765593,1.12625726,1325.0,1324.7,14.69162721]
[1673328765789,2.81606038,1325.0,1324.7,14.69162721]
[1673328766025,2.81606038,1325.0,1324.7,7.14309721]
[1673328766202,2.81606038,1325.0,1324.7,14.69185721]
[1673328766407,2.81606038,1325.0,1324.7,7.14309721]
[1673328766661,10.36326038,1325.0,1324.7,4.33365525]
[1673328766842,10.42926038,1325.0,1324.7,4.26765525]
[1673328767497,2.88206038,1325.0,1324.7,7.07709721]
[1673328767823,2.81606038,1325.0,1324.7,7.14309721]
[1673328768197,2.81606038,1325.0,1324.7,14.69189721]
[1673328770195,1.12625726,1324.9,1324.7,14.69189721]
[1673328771989,1.12625726,1324.9,1324.7,10.43038251]
[1673328772632,1.12625726,1324.9,1324.7,7.62094055]
[1673328772867,1.12625726,1324.9,1324.7,10.43038251]
[1673328773288,1.12625726,1324.9,1324.7,2.88158251]
[1673328773608,1.12625726,1324.9,1324.7,0.00614055]
[1673328774191,1.12625726,1324.9,1324.7,1.87926951]
[1673328777465,2.81606038,1324.9,1324.7,1.87926951]
[1673328779778,1.12625726,1324.8,1324.7,0.00614055]
[1673328780202,1.68980312,1324.9,1324.8,0.00358225]
[1673328780203,2.81606038,1324.9,1324.8,0.00358225]
[1673328780458,6.5352637,1324.9,1324.8,0.00358225]
[1673328780618,6.6012637,1324.9,1324.8,0.00358225]
[1673328784043,5.47500644,1324.9,1324.8,0.00358225]
[1673328784372,6.60423739,1324.9,1324.8,0.00358225]
[1673328785006,2.88503407,1324.9,1324.8,0.00358225]
[1673328785326,12.31453407,1325.0,1324.8,16.45118225]
[1673328785515,10.62473095,1325.0,1324.8,24.06548225]
[1673328785846,10.62473095,1325.0,1324.8,25.1911949]
[1673328786071,10.62473095,1325.0,1324.8,24.06548225]
[1673328786214,10.62473095,1325.0,1324.8,25.1911949]
[1673328786665,10.62473095,1325.0,1324.8,24.06548225]
[1673328787423,10.62473095,1325.0,1324.8,25.1911949]
[1673328787577,10.62473095,1325.0,1324.9,1.87289838]
[1673328788008,1.19523095,1325.0,1324.9,9.42062838]
[1673328788258,1.12923095,1325.0,1324.9,9.48660486]
[1673328788474,1.12923095,1325.0,1324.9,9.44880947]
[1673328789501,1.12923095,1325.0,1324.9,9.41104591]
[1673328789705,1.12923095,1325.0,1324.9,7.53817105]
[1673328790241,1.12923095,1325.0,1324.9,9.41103384]
[1673328790449,1.12923095,1325.0,1324.9,16.92100028]
[1673328790641,1.12923095,1325.0,1324.9,7.50040749]
[1673328791407,1.12923095,1325.0,1324.9,7.4626121]
[1673328791638,1.12923095,1325.0,1324.9,15.0103421]
[1673328792412,1.12923095,1325.0,1324.9,14.97257854]
[1673328795265,1.12923095,1325.0,1324.9,7.42484854]
[1673328796701,1.12923095,1325.0,1324.9,0.066]
[1673328796875,1.12923095,1325.0,1324.8,16.2911249]
[1673328798062,0.05,1324.9,1324.8,16.2911249]
[1673328798369,1.12923095,1325.0,1324.8,16.2911249]
[1673328802210,1.12923095,1325.0,1324.8,26.84508883]
[1673328802428,1.12923095,1325.0,1324.8,28.55908883]
[1673328802696,1.12923095,1325.0,1324.9,1.714]
[1673328802997,1.12923095,1325.0,1324.9,26.85719]
[1673328803208,1.12923095,1325.0,1324.9,26.92319]
[1673328805104,1.12923095,1325.0,1324.9,24.42319]
[1673328805335,1.12923095,1325.0,1324.9,27.70040488]
[1673328808520,1.12923095,1325.1,1324.9,22.02545126]
[1673328808731,1.12923095,1325.1,1324.9,20.15267488]
[1673328809258,1.12923095,1325.1,1324.9,18.43867488]
[1673328811417,1.12923095,1325.1,1324.9,18.40089035]
[1673328812037,1.12923095,1325.1,1324.9,25.94862035]
[1673328813092,1.12923095,1325.1,1324.9,18.40089035]
[1673328815610,1.12923095,1325.1,1324.9,25.94862035]
[1673328815849,1.12923095,1325.1,1325.0,2.5]
[1673328815987,1.12923095,1325.1,1325.0,10.04716]
[1673328816193,2.81903407,1325.2,1325.0,10.11316]
[1673328816411,2.81903407,1325.2,1325.0,17.66032]
[1673328816623,1.12923095,1325.1,1325.0,15.16032]
[1673328819021,2.81903407,1325.2,1325.0,31.51316095]
[1673328819347,6.73767248,1325.3,1325.2,22.63809]
[1673328819348,2.04782797,1325.3,1325.2,22.63809]
[1673328819479,3.67163109,1325.3,1325.2,22.70409]
[1673328819688,1.98182797,1325.3,1325.2,22.70409]
[1673328819967,0.85259702,1325.3,1325.2,27.5821765]
[1673328820157,0.85259702,1325.3,1325.2,28.70788915]
[1673328820376,0.85259702,1325.3,1325.2,28.67012194]
[1673328820535,0.85259702,1325.3,1325.2,27.54440929]
[1673328822055,0.85259702,1325.3,1325.2,19.99837929]
[1673328822216,0.85259702,1325.3,1325.2,27.54440929]
[1673328822425,0.85259702,1325.3,1325.2,19.99837929]
[1673328823098,0.85259702,1325.3,1325.2,18.12595672]
[1673328824129,0.85259702,1325.3,1325.2,19.83995672]
[1673328824454,0.85259702,1325.3,1325.2,36.92119766]
[1673328824650,0.85259702,1325.3,1325.2,35.86430044]
[1673328824862,0.85259702,1325.3,1325.2,33.05595582]
[1673328825263,0.85259702,1325.3,1325.2,31.18364736]
[1673328826636,0.85259702,1325.3,1325.2,23.63761736]
[1673328827886,0.85259702,1325.3,1325.2,16.09158736]
[1673328828759,0.85259702,1325.3,1325.2,8.58332457]
[1673328829089,0.85259702,1325.3,1325.2,13.12369064]
[1673328829317,0.85259702,1325.3,1325.2,20.66972064]
[1673328830409,0.85259702,1325.3,1325.2,13.12369064]
[1673328830770,0.85259702,1325.3,1325.2,20.66972064]
[1673328832755,0.85259702,1325.3,1325.2,13.12369064]
[1673328833059,0.85259702,1325.3,1325.2,16.0582038]
[1673328834087,0.05710951,1325.4,1325.3,1.91174774]
[1673328834344,0.05710951,1325.4,1325.3,38.5836087]
[1673328834510,0.05710951,1325.4,1325.3,40.52389605]
[1673328835450,0.05710951,1325.4,1325.3,43.94889605]
[1673328835660,0.05710951,1325.4,1325.3,47.2972617]
[1673328835910,0.05710951,1325.4,1325.3,51.82412622]
[1673328836242,0.05710951,1325.4,1325.3,50.69841357]
[1673328836552,0.05710951,1325.4,1325.3,51.82420821]
[1673328836759,9.51e-06,1325.4,1325.3,51.82420821]
[1673328837145,9.51e-06,1325.4,1325.3,50.13705634]
[1673328837355,9.51e-06,1325.4,1325.3,51.82420821]
[1673328837814,9.51e-06,1325.4,1325.3,50.13705634]
[1673328837990,9.51e-06,1325.4,1325.3,51.82420821]
[1673328838661,9.51e-06,1325.4,1325.3,50.13705634]
[1673328839048,1e-08,1325.7,1325.4,2.5]
[1673328839259,1e-08,1325.7,1325.6,26.05125]
[1673328839468,1e-08,1325.7,1325.6,29.91491064]
[1673328840874,1e-08,1325.7,1325.6,13.12141064]
[1673328841505,1e-08,1325.7,1325.6,20.66516064]
[1673328843607,1e-08,1325.7,1325.6,13.12141064]
[1673328843817,1e-08,1325.7,1325.6,16.0559238]
[1673328846398,1e-08,1325.7,1325.6,32.8504238]
[1673328852172,1e-08,1325.7,1325.6,36.70324938]
[1673328852395,1e-08,1325.7,1325.6,32.8504238]
[1673328852642,1e-08,1325.7,1325.6,48.69824938]
[1673328852837,0.07064126,1325.8,1325.6,48.69824938]
[1673328852838,0.07064126,1325.8,1325.7,23.85953999]
[1673328853067,0.07064126,1325.8,1325.7,44.71882239]
[1673328853958,1.26e-06,1325.8,1325.7,44.71882239]
[1673328854216,1.26e-06,1325.8,1325.7,47.71882239]
[1673328856217,1.26e-06,1325.8,1325.7,47.72133968]
[1673328856588,1.26e-06,1325.8,1325.7,46.01833968]
[1673328859257,9.14799125,1326.1,1325.8,2.5]
[1673328859473,9.14799125,1326.1,1325.9,35.67733755]
[1673328859687,9.14799125,1326.1,1326.0,3.79766064]
[1673328859895,0.13349125,1326.1,1326.0,26.42207064]
[1673328860206,0.06749125,1326.1,1326.0,26.48807064]
[1673328860425,0.06749125,1326.1,1326.0,29.4225838]
[1673328862264,0.11749125,1326.1,1326.0,29.4225838]
[1673328862469,0.06749125,1326.1,1326.0,18.94660064]
[1673328862725,0.06749125,1326.1,1326.0,11.40513064]
[1673328862943,0.06749125,1326.1,1326.0,18.94660064]
[1673328863685,0.06749125,1326.1,1326.0,15.14894]
[1673328873356,0.06749125,1326.1,1326.0,26.48807064]
[1673328873572,0.06749125,1326.1,1326.0,31.7736954]
[1673328879192,0.08083522,1326.2,1326.0,31.7736954]
[1673328882462,0.08083522,1326.2,1326.0,0.066]
[1673328882693,1.21006617,1326.2,1325.9,15.14938]
[1673328882907,3.71006617,1326.2,1325.9,7.60766]
[1673328883116,3.71006617,1326.2,1325.9,22.69174]
[1673328883517,3.71006617,1326.2,1325.9,25.99583124]
[1673328884278,1.12923095,1326.1,1325.9,0.066]
[1673328884493,2.5,1326.0,1325.8,0.066]
[1673328884681,2.5,1326.0,1325.8,3.79766064]
[1673328885031,14.42573095,1326.1,1325.8,3.79766064]
[1673328885202,14.47573095,1326.1,1325.8,11.34026064]
[1673328885396,14.47573095,1326.1,1325.8,11.40626064]
[1673328885605,2.5,1326.0,1325.8,0.066]
[1673328885811,2.5,1326.0,1325.7,36.12528513]
[1673328886076,3.62923095,1326.0,1325.7,39.92294577]
[1673328889024,1.12923095,1326.0,1325.7,39.92294577]
[1673328889183,1.12923095,1326.0,1325.7,24.83694577]
[1673328889395,1.12923095,1326.0,1325.7,36.70169581]
[1673328890409,3.62923095,1326.0,1325.7,36.70169581]
[1673328891322,3.62923095,1326.0,1325.7,25.36085517]
[1673328891545,3.62923095,1326.0,1325.7,18.23203999]
[1673328891857,3.62923095,1326.0,1325.7,7.61083999]
[1673328892089,1.71,1325.9,1325.7,0.06799999]
[1673328892238,9.25205,1325.9,1325.7,0.00199999]
[1673328892445,1.712,1325.8,1325.7,0.00199999]
[1673328893283,1.762,1325.8,1325.7,0.00199999]
[1673328893605,1.712,1325.8,1325.7,0.00199999]
[1673328896483,1.712,1325.8,1325.7,7.54517999]
[1673328896691,1.712,1325.8,1325.7,7.61117999]
[1673328896881,1.712,1325.8,1325.7,0.06799999]
[1673328897120,1.712,1325.8,1325.7,0.00199999]
[1673328900682,1e-08,1325.8,1325.7,7.54517999]
[1673328900860,1e-08,1325.8,1325.7,7.61117999]
[1673328902112,2.50000001,1325.8,1325.7,0.06799999]
[1673328902321,2.50000001,1325.8,1325.7,0.00199999]
[1673328905103,2.5,1325.8,1325.7,0.00199999]
[1673328907412,10.4178,1325.9,1325.7,7.54517999]
[1673328907629,10.4178,1325.9,1325.7,7.61117999]
[1673328908214,10.4178,1325.9,1325.7,7.60918]
[1673328908876,10.4178,1325.9,1325.7,0.066]
[1673328909342,10.4178,1325.9,1325.6,15.15318]
[1673328909473,10.4178,1325.9,1325.6,26.32354717]
[1673328911076,9.0618,1325.9,1325.7,1.87156558]
[1673328911267,9.0618,1325.9,1325.8,22.62783]
[1673328911504,9.0618,1325.9,1325.8,22.69383]
[1673328912099,0.066,1325.9,1325.8,22.69383]
[1673328912353,1.9188,1326.0,1325.8,22.69383]
[1673328914516,1.353,1326.0,1325.8,22.69383]
[1673328915295,1.353,1326.0,1325.8,25.24394205]
[1673328916251,1.353,1326.0,1325.8,25.24112338]
[1673328916252,1.708,1326.0,1325.8,25.24112338]
[1673328916412,1.708,1326.0,1325.8,25.20335365]
[1673328916888,22.18503407,1326.1,1325.8,25.20335365]
[1673328917101,22.18503407,1326.1,1325.8,22.6532416]
[1673328918382,1.12923095,1326.0,1325.8,15.1106316]
[1673328922264,1.17923095,1326.0,1325.8,15.1106316]
[1673328922478,1.12923095,1326.0,1325.8,15.1106316]
[1673328923799,1.12923095,1326.0,1325.8,22.6532416]
[1673328924428,0.56768127,1325.9,1325.8,22.6532416]
[1673328924638,0.56768127,1325.9,1325.8,27.35208089]
[1673328925522,0.56768127,1325.9,1325.8,19.80947089]
[1673328927609,0.46768127,1325.9,1325.8,19.80947089]
[1673328929933,0.46768127,1325.9,1325.8,20.93526553]
[1673328930686,0.46768127,1325.9,1325.8,19.80947089]
[1673328931811,0.46768127,1325.9,1325.8,12.26686089]
[1673328934133,0.46768127,1325.9,1325.8,19.80947089]
[1673328934466,0.46768127,1325.9,1325.8,13.3549034]
[1673328934656,0.46768127,1325.9,1325.8,12.22910876]
[1673328935070,0.46768127,1325.9,1325.8,13.3549034]
[1673328935488,0.46768127,1325.9,1325.8,13.31715086]
[1673328935703,0.46768127,1325.9,1325.8,12.19135622]
[1673328936443,0.46768127,1325.9,1325.8,12.15358793]
[1673328936657,0.46768127,1325.9,1325.8,9.32624007]
[1673328938445,0.46768127,1325.9,1325.8,9.28848794]
[1673328939465,0.46768127,1325.9,1325.8,9.25073275]
[1673328940472,0.46768127,1325.9,1325.8,1.90172931]
[1673328940643,0.46768127,1325.9,1325.8,1.87149143]
[1673328940854,0.46768127,1325.9,1325.8,9.41410143]
[1673328941067,0.46768127,1325.9,1325.8,9.44433931]
[1673328941605,0.46768127,1325.9,1325.8,9.40658412]
[1673328945517,0.46768127,1325.9,1325.8,9.36882904]
[1673328946113,0.46768127,1325.9,1325.8,10.49462368]
[1673328946515,0.46768127,1325.9,1325.8,10.45686554]
[1673328947618,0.46768127,1325.9,1325.8,10.41909581]
[1673328948199,0.46768127,1325.9,1325.8,17.96170581]
[1673328948414,0.46768127,1325.9,1325.8,20.90581616]
[1673328949388,1e-08,1325.9,1325.8,43.44243458]
[1673328949603,1e-08,1325.9,1325.8,43.96241949]
[1673328949951,1.21006617,1326.2,1325.9,0.00199999]
[1673328950251,0.08083522,1326.2,1326.0,27.55309764]
[1673328950417,0.08083522,1326.2,1326.0,32.23666592]
[1673328951246,0.08083522,1326.2,1326.0,35.04395638]
[1673328951452,0.08083522,1326.2,1326.0,35.00619234]
[1673328952556,0.08083522,1326.2,1326.0,34.9684283]
[1673328953366,0.08083522,1326.2,1326.0,34.93066426]
[1673328954245,0.08083522,1326.2,1326.0,33.79963726]
[1673328954475,0.08083522,1326.2,1326.0,33.76187322]
[1673328955350,0.08083522,1326.2,1326.0,33.72410918]
[1673328956446,0.08083522,1326.2,1326.0,33.68635857]
[1673328956661,0.08083522,1326.2,1326.1,5.50966064]
[1673328956818,0.08083522,1326.2,1326.1,32.92050269]
[1673328957023,0.08083522,1326.2,1326.1,35.72779315]
[1673328957656,0.08083522,1326.2,1326.1,34.59676615]
[1673328957868,0.08083522,1326.2,1326.1,35.72779315]
[1673328958300,0.08083522,1326.2,1326.1,34.59676615]
[1673328963224,0.08083522,1326.2,1326.1,42.96870794]
[1673328963488,0.08083522,1326.2,1326.1,29.89454474]
[1673328963643,0.08083522,1326.2,1326.1,28.76786615]
[1673328963857,0.08083522,1326.2,1326.1,29.89454474]
[1673328964096,0.08083522,1326.2,1326.1,28.76786615]
[1673328964312,0.08083522,1326.2,1326.1,36.30876615]
[1673328964507,0.08083522,1326.2,1326.1,37.43544474]
[1673328965540,0.08083522,1326.2,1326.1,36.30876615]
[1673328965996,0.08083522,1326.2,1326.1,34.59676615]
[1673328966205,0.08083522,1326.2,1326.1,31.78947569]
[1673328966400,0.08083522,1326.2,1326.1,34.59579797]
[1673328966618,0.08083522,1326.2,1326.1,3.82789852]
[1673328966817,0.08083522,1326.2,1326.1,11.33856064]
[1673328967009,1.30883522,1326.2,1326.1,0.03023788]
[1673328967222,1.31135693,1326.2,1325.9,10.33130537]
[1673328967588,1.87705693,1326.2,1325.9,21.67095601]
[1673328967798,1.87705693,1326.2,1325.9,14.19945601]
[1673328968105,4.87256272,1326.2,1325.9,14.19945601]
[1673328968321,4.87256272,1326.2,1325.9,21.74149601]
[1673328968484,0.77996386,1326.1,1325.9,21.74149601]
[1673328969417,1e-08,1326.1,1325.9,21.74149601]
[1673328970269,1e-08,1326.1,1325.9,2.85980537]
[1673328970480,1e-08,1326.1,1325.9,2.82956749]
[1673328970696,1e-08,1326.1,1325.9,10.37154749]
[1673328970925,1e-08,1326.1,1325.9,10.40178537]
[1673328971975,1e-08,1326.1,1325.9,10.40181537]
[1673328974051,1e-08,1326.1,1325.9,2.85980537]
[1673328974256,1e-08,1326.1,1325.9,2.82956749]
[1673328975675,1e-08,1326.1,1325.9,2.79180061]
[1673328983455,1e-08,1326.1,1325.9,25.41773061]
[1673328983772,1e-08,1326.1,1325.9,29.59269827]
[1673328983981,1e-08,1326.1,1325.9,33.52623673]
[1673328984928,1e-08,1326.1,1326.0,24.49555474]
[1673328985156,1e-08,1326.1,1326.0,24.52579262]
[1673328986073,1e-08,1326.1,1326.0,16.98432262]
[1673328986643,1e-08,1326.1,1326.0,9.44285262]
[1673328986857,1e-08,1326.1,1326.0,24.52579262]
[1673328987168,1e-08,1326.1,1326.0,9.44285262]
[1673328987380,1e-08,1326.1,1326.0,7.57170788]
[1673328988113,1e-08,1326.1,1326.0,1.9014543]
[1673328988283,1e-08,1326.1,1325.9,21.83923695]
[1673328988488,1e-08,1326.1,1325.9,19.03237708]
[1673328989583,2.58083522,1326.2,1326.1,0.00199999]
[1673328989757,4.09606215,1326.2,1326.1,0.00199999]
[1673328990387,4.09606215,1326.2,1325.9,29.38095695]
[1673328990609,4.09606215,1326.2,1325.9,26.57409708]
[1673328991231,1.59606215,1326.2,1325.9,26.57409708]
[1673328992159,2.7252931,1326.2,1325.9,25.44741849]
[1673328992368,5.2252931,1326.2,1325.9,25.44741849]
[1673328992595,2.7912931,1326.2,1325.9,25.44741849]
[1673328992803,2.7252931,1326.2,1325.9,25.44741849]
[1673328993053,5.2252931,1326.2,1325.9,25.44741849]
[1673328993271,5.2912931,1326.2,1325.9,25.44741849]
[1673328994119,5.2912931,1326.2,1325.9,10.36370849]
[1673328994474,2.7912931,1326.2,1325.9,10.36370849]
[1673328994685,2.7252931,1326.2,1325.9,10.36370849]
[1673328997110,5.2252931,1326.2,1325.9,10.36370849]
[1673328997327,5.2912931,1326.2,1325.9,10.36370849]
[1673328998704,5.2912931,1326.2,1325.9,13.17056836]
[1673328998925,2.7912931,1326.2,1325.9,10.36370849]
[1673328999251,5.2252931,1326.2,1325.9,10.36370849]
[1673328999429,5.2912931,1326.2,1325.9,10.36370849]
[1673329002249,2.7912931,1326.2,1325.9,10.36370849]
[1673329002496,2.7252931,1326.2,1325.9,10.36370849]
[1673329003029,0.05,1326.0,1325.9,10.36370849]
[1673329003343,1.21006617,1326.2,1325.9,16.40769731]
[1673329003565,2.89986929,1326.2,1325.9,14.29724695]
[1673329003776,1.21006617,1326.2,1326.0,1.87124119]
[1673329005434,3.71006617,1326.2,1326.0,1.87124119]
[1673329005767,1.12923095,1326.1,1326.0,1.87124119]
[1673329010806,2.81903407,1326.1,1326.0,1.87124119]
[1673329011225,2.81903407,1326.1,1325.9,2.99791978]
[1673329012014,1.12923095,1326.1,1325.9,2.99791978]
[1673329012224,2.81903407,1326.1,1325.9,2.99791978]
[1673329014503,2.82103407,1326.1,1325.9,2.99791978]
[1673329014714,2.81903407,1326.1,1325.9,2.99791978]
[1673329015053,2.81903407,1326.1,1325.9,2.99518962]
[1673329015896,1.12923095,1326.1,1325.9,2.99518962]
[1673329022834,16.77797095,1326.0,1325.8,2.83709775]
[1673329023054,16.77797095,1326.0,1325.7,9.25093788]
[1673329023055,1.12923095,1325.9,1325.7,9.25093788]
[1673329023238,1.12923095,1325.9,1325.7,0.03023788]
[1673329023239,17.90372407,1325.9,1325.7,0.03023788]
[1673329023418,25.51224407,1325.9,1325.6,9.50727838]
[1673329023629,1.12923095,1325.8,1325.7,1.87172836]
[1673329023971,8.67184095,1325.8,1325.7,1.87172836]
[1673329024192,8.67184095,1325.8,1325.6,7.81073788]
[1673329024193,7.60861,1325.8,1325.6,7.81073788]
[1673329024372,7.60861,1325.8,1325.6,0.03023788]
[1673329024587,7.60861,1325.8,1325.5,4.6965405]
[1673329024815,7.60861,1325.8,1325.6,1.8717348]
[1673329025040,7.60861,1325.8,1325.6,3.00154045]
[1673329025460,7.60861,1325.8,1325.6,1.8717348]
[1673329025692,0.066,1325.8,1325.6,1.12980565]
[1673329025832,10.44940095,1325.9,1325.6,3.00151914]
[1673329026048,0.05,1325.7,1325.6,3.00151914]
[1673329026273,5.40723095,1325.9,1325.6,7.20121788]
[1673329026508,5.40723095,1325.9,1325.6,8.16660214]
[1673329026677,5.40723095,1325.9,1325.6,5.35974227]
[1673329027218,2.90723095,1325.9,1325.6,12.90346227]
[1673329027410,2.84123095,1325.9,1325.6,12.90346227]
[1673329028303,5.34123095,1325.9,1325.6,11.77365662]
[1673329028643,5.40723095,1325.9,1325.6,11.77365662]
[1673329028982,5.40723095,1325.9,1325.6,12.90346227]
[1673329029228,2.90723095,1325.9,1325.6,12.90346227]
[1673329029422,2.84123095,1325.9,1325.6,12.90346227]
[1673329029609,1.712,1325.9,1325.6,12.90346227]
[1673329030032,0.05,1325.7,1325.6,12.90346227]
[1673329030294,4.212,1325.9,1325.6,13.64533251]
[1673329030510,4.212,1325.9,1325.6,14.58051649]
[1673329030665,4.212,1325.9,1325.6,11.77365662]
[1673329031139,1.712,1325.9,1325.6,11.77365662]
[1673329031821,1.712,1325.9,1325.6,12.90346227]
[1673329032379,4.212,1325.9,1325.6,11.77365662]
[1673329032983,4.212,1325.9,1325.6,4.22993662]
[1673329033362,4.212,1325.9,1325.6,4.19969874]
[1673329035550,1.712,1325.9,1325.6,4.19969874]
[1673329036491,4.212,1325.9,1325.6,11.74328874]
[1673329036811,4.212,1325.9,1325.6,11.77352662]
[1673329037214,2.5,1325.9,1325.6,11.77352662]
[1673329039188,23.53677266,1326.0,1325.6,11.77352662]
[1673329039393,28.94928803,1326.0,1325.6,7.57382788]
[1673329039610,30.63909115,1326.0,1325.6,7.57382788]
[1673329040593,2.5,1325.9,1325.6,7.57382788]
[1673329041443,10.04209,1325.9,1325.6,0.03023788]
[1673329041614,7.60809,1325.9,1325.5,21.07807941]
[1673329041822,12.18039512,1325.9,1325.6,1.87171997]
[1673329042041,4.212,1325.8,1325.5,2.83709775]
[1673329042378,26.84037,1325.8,1325.4,18.5697168]
[1673329042557,26.90637,1325.8,1325.5,1.87185927]
[1673329042771,28.03560095,1325.8,1325.5,1.87185927]
[1673329043017,31.30102092,1325.8,1325.4,24.04443166]
[1673329043341,32.43025187,1325.8,1325.4,21.23757179]
[1673329043549,24.88737187,1325.8,1325.4,28.78241179]
[1673329043724,24.88737187,1325.8,1325.4,29.91221744]
[1673329043725,17.34449187,1325.8,1325.4,29.91221744]
[1673329043940,17.34449187,1325.8,1325.4,32.71907731]
[1673329044247,17.34449187,1325.8,1325.4,31.58927166]
[1673329044866,8.67265092,1325.8,1325.5,1.87182628]
[1673329045075,4.27407131,1325.8,1325.5,1.87182628]
[1673329045323,11.75078131,1325.8,1325.5,1.87182628]
[1673329045519,11.81678131,1325.8,1325.5,1.87182628]
[1673329045959,4.27407131,1325.8,1325.5,1.87182628]
[1673329046179,4.20807131,1325.8,1325.5,9.41602628]
[1673329046413,4.20807131,1325.8,1325.5,15.06945736]
[1673329046549,1.712,1325.8,1325.5,14.96945736]
[1673329046761,0.05,1325.7,1325.5,14.96945736]
[1673329048759,31.28099266,1325.9,1325.5,14.96945736]
[1673329049010,2.5,1325.8,1325.5,10.28214899]
[1673329049223,2.5,1325.8,1325.5,7.47443788]
[1673329049595,2.5,1325.8,1325.5,10.28214899]
[1673329051594,2.5,1325.8,1325.5,11.41195464]
[1673329052025,20.10063266,1325.9,1325.5,11.41195464]
[1673329052234,25.78430432,1325.9,1325.5,11.41195464]
[1673329052982,2.5,1325.8,1325.5,11.41195464]
[1673329053210,25.78430432,1325.9,1325.5,16.14856353]
[1673329053528,25.78430432,1325.9,1325.6,1.87175097]
[1673329054056,25.78430432,1325.9,1325.6,16.95919097]
[1673329054057,16.53022432,1325.9,1325.6,16.95919097]
[1673329054283,9.15152171,1325.9,1325.6,26.48622176]
[1673329054428,9.149,1325.9,1325.6,33.11668805]
[1673329054637,9.149,1325.9,1325.6,40.44087513]
[1673329054845,9.149,1325.9,1325.7,4.37161858]
[1673329055102,9.149,1325.9,1325.8,15.08522]
[1673329055267,0.066,1325.9,1325.8,7.57284788]
[1673329055491,13.48153407,1326.0,1325.8,7.57284788]
[1673329055951,2.88503407,1326.0,1325.8,7.57284788]
[1673329056129,2.81903407,1326.0,1325.8,7.57284788]
[1673329056486,1.12923095,1326.0,1325.8,7.57284788]
[1673329057258,1.12923095,1326.0,1325.8,9.83870367]
[1673329057696,2.81903407,1326.0,1325.8,17.38131367]
[1673329058262,1.12923095,1326.0,1325.8,17.38131367]
[1673329059598,2.81903407,1326.0,1325.8,17.38131367]
[1673329064322,2.81903407,1326.0,1325.8,9.83870367]
[1673329064512,2.81903407,1326.0,1325.8,7.57284788]